bitfinex/quotes_SOLUSD_20240620
["timestamp","ask_amount","ask_price","bid_price","bid_amount"]
[1718848272731,7.3889,135.34,135.24,6.3033]
[1718848272955,0.17,135.33,135.24,6.3033]
[1718848273249,7.3907,135.31,135.24,6.3033]
[1718848273456,0.34,135.3,135.24,6.3033]
[1718848273656,0.51,135.3,135.24,6.3033]
[1718848273836,0.34,135.29,135.24,6.3033]
[1718848274151,0.51,135.28,135.24,6.3033]
[1718848275451,0.34,135.27,135.24,6.3033]
[1718848275635,0.34,135.26,135.24,6.3033]
[1718848275953,0.34,135.25,135.2,6.2308]
[1718848276161,0.17,135.23,135.2,6.2308]
[1718848276462,7.3959,135.21,135.15,6.2308]
[1718848276666,0.34,135.23,135.15,6.2308]
[1718848276667,0.51,135.2,135.15,6.2308]
[1718848276832,0.17,135.19,135.15,6.2308]
[1718848277159,0.51,135.19,135.11,6.4967]
[1718848277456,0.17,135.18,135.11,6.4967]
[1718848277757,0.17,135.17,135.11,6.4967]
[1718848277937,0.51,135.17,135.11,6.4967]
[1718848278252,0.17,135.16,135.11,6.4967]
[1718848278457,0.17,135.15,135.11,13.8977]
[1718848278660,0.34,135.15,135.11,6.4967]
[1718848278873,0.17,135.14,135.13,7.4002]
[1718848279040,0.68,135.14,135.13,7.4002]
[1718848279357,0.68,135.14,135.12,7.4007]
[1718848279540,0.17,135.13,135.11,6.4967]
[1718848279737,0.51,135.13,135.11,13.898]
[1718848280045,0.17,135.12,135.11,13.898]
[1718848280360,0.51,135.12,135.11,13.898]
[1718848280863,0.17,135.13,135.05,6.382]
[1718848281042,0.17,135.08,135.06,7.4036]
[1718848281233,0.34,135.08,135.06,7.4036]
[1718848281434,0.34,135.08,135.07,7.4035]
[1718848281650,0.17,135.09,135.08,7.403]
[1718848282146,0.34,135.09,135.08,7.403]
[1718848282471,0.51,135.09,135.08,7.403]
[1718848282670,0.68,135.09,135.08,7.403]
[1718848282957,0.68,135.09,135.08,6.903]
[1718848283161,0.51,135.09,135.08,6.903]
[1718848283338,0.17,135.09,135.08,6.903]
[1718848283545,0.17,135.14,135.09,7.4021]
[1718848283741,0.68,135.14,135.09,7.4021]
[1718848284155,15.3751,135.2,135.05,6.382]
[1718848284464,118.4902,135.21,135.05,6.382]
[1718848284757,20.0,135.2,135.05,6.382]
[1718848285057,7.3973,135.19,135.13,7.4001]
[1718848285374,100.0,135.21,135.05,6.382]
[1718848285544,20.0,135.2,135.05,6.382]
[1718848285846,112.39357179,135.23,135.06,20.0]
[1718848286051,759.6969927,135.25,135.06,20.0]
[1718848286266,399.4827,135.27,135.06,20.0]
[1718848286267,7.3946,135.24,135.18,7.397]
[1718848286562,20.0,135.26,135.18,7.3973]
[1718848286750,18.4913,135.2,135.11,7.4008]
[1718848286951,118.4913,135.2,135.11,7.4008]
[1718848287271,100.0,135.2,135.1,6.5051]
[1718848287561,0.51,135.19,135.1,6.5051]
[1718848287862,0.17,135.18,135.1,6.5051]
[1718848288358,0.17,135.15,135.1,6.5051]
[1718848288561,0.34,135.11,135.08,7.4029]
[1718848288852,0.17,135.1,135.09,7.4024]
[1718848289245,0.34,135.11,135.09,7.4024]
[1718848289844,0.17,135.1,135.06,13.4496]
[1718848290039,0.34,135.1,135.06,13.4496]
[1718848290244,0.17,135.1,135.06,6.0457]
[1718848290446,355.9,135.2,135.11,7.4012]
[1718848290752,7.5671,135.19,135.12,7.4007]
[1718848290949,7.5671,135.19,135.13,7.4002]
[1718848291272,255.9,135.2,135.16,7.3982]
[1718848291968,255.9,135.2,135.09,16.2211]
[1718848292271,255.9,135.2,135.1,20.0]
[1718848292458,255.9,135.2,135.11,6.3793]
[1718848293073,0.51,135.19,135.11,6.3793]
[1718848293254,0.34,135.18,135.11,6.3793]
[1718848293454,0.34,135.17,135.11,6.3793]
[1718848294768,0.34,135.16,135.11,6.3793]
[1718848294994,0.34,135.15,135.11,6.3793]
[1718848295155,0.17,135.14,135.11,6.3793]
[1718848295357,0.34,135.14,135.11,6.3793]
[1718848295555,0.34,135.13,135.11,6.3793]
[1718848295972,0.34,135.13,135.11,7.401]
[1718848296185,0.17,135.12,135.02,6.3071]
[1718848296354,0.34,135.12,135.08,7.4026]
[1718848296553,0.17,135.1,135.06,7.4039]
[1718848296875,0.17,135.1,135.06,7.4037]
[1718848297070,0.34,135.1,135.06,7.4037]
[1718848297246,0.34,135.09,135.06,7.4037]
[1718848297449,0.34,135.09,135.07,7.4034]
[1718848297976,0.17,135.08,135.02,6.3071]
[1718848298187,0.34,135.09,135.06,7.404]
[1718848298656,0.17,135.08,135.02,6.3071]
[1718848299253,0.34,135.08,135.02,6.3071]
[1718848299455,0.34,135.07,135.05,7.4042]
[1718848299665,0.17,135.08,135.04,7.4051]
[1718848299955,0.17,135.08,135.03,7.4057]
[1718848299956,0.34,135.08,135.03,7.4057]
[1718848300152,0.34,135.07,134.97,6.6113]
[1718848300560,0.17,135.06,135.04,7.405]
[1718848300778,0.17,135.06,135.03,7.4057]
[1718848301075,0.34,135.06,135.03,7.4057]
[1718848301266,0.34,135.05,134.97,6.6113]
[1718848301465,0.34,135.05,135.03,7.4057]
[1718848301781,0.34,135.05,135.01,7.4066]
[1718848301967,0.34,135.05,135.02,7.4061]
[1718848302151,0.34,135.05,134.97,6.6113]
[1718848302356,0.34,135.05,135.03,7.4057]
[1718848302685,0.34,135.05,134.97,6.6113]
[1718848302686,0.34,135.05,135.04,7.4052]
[1718848302855,6.4064,135.11,134.97,6.6113]
[1718848303061,7.4025,135.09,135.03,7.4055]
[1718848303262,0.17,135.08,135.03,7.4057]
[1718848303463,0.34,135.08,135.03,7.4057]
[1718848303767,7.7432,135.08,135.02,7.4062]
[1718848304278,0.51,135.07,135.02,7.4062]
[1718848304485,0.51,135.07,134.97,6.6113]
[1718848304992,0.34,135.07,134.98,20.0]
[1718848305150,0.17,135.06,134.98,20.0]
[1718848305357,0.34,135.06,135.0,7.4068]
[1718848305657,0.51,135.05,135.0,7.4068]
[1718848305956,6.4064,135.11,134.97,6.6113]
[1718848306361,6.4064,135.11,135.04,7.4048]
[1718848306563,7.4021,135.1,135.04,7.405]
[1718848306759,7.69020392,135.14,134.97,32.0313]
[1718848306981,100.0,135.14,134.97,32.0313]
[1718848307181,7.4017,135.11,135.05,7.4045]
[1718848307390,7.4019,135.1,135.04,7.4049]
[1718848307710,7.4025,135.09,135.03,7.4055]
[1718848307990,100.0,135.14,134.98,45.0]
[1718848308199,7.4017,135.11,135.05,7.4042]
[1718848308376,7.4009,135.12,135.06,7.404]
[1718848308579,24.5171,135.15,134.98,45.0]
[1718848308580,7.4004,135.13,135.07,7.4035]
[1718848309079,6.0179,135.15,135.1,7.4015]
[1718848309671,13.4171,135.15,135.09,7.4023]
[1718848310086,6.0179,135.15,135.09,7.4023]
[1718848310400,106.6316,135.19,135.05,6.598]
[1718848310705,7.3971,135.19,135.13,7.4002]
[1718848311000,7.3973,135.19,135.13,7.4002]
[1718848311163,7.3976,135.18,135.06,45.0]
[1718848311367,100.0,135.2,135.09,7.4021]
[1718848311598,118.4942,135.18,135.06,45.0]
[1718848311783,0.17,135.14,135.09,7.4021]
[1718848311979,0.17,135.13,135.08,7.403]
[1718848312169,0.68,135.13,135.08,7.403]
[1718848312790,0.68,135.13,135.09,7.4021]
[1718848313098,0.68,135.13,135.11,7.4013]
[1718848313276,0.68,135.13,135.1,7.4018]
[1718848313787,0.51,135.13,135.11,7.4012]
[1718848313967,22.8565,135.21,135.15,7.3991]
[1718848314290,263.2943,135.24,135.18,7.3971]
[1718848314492,263.2943,135.24,135.13,22.4178]
[1718848314493,255.9,135.24,135.13,22.4178]
[1718848314676,255.9,135.24,135.14,45.0]
[1718848314876,7.3956,135.22,135.16,7.3985]
[1718848315386,374.3857,135.24,135.13,22.4178]
[1718848315586,7.3965,135.2,135.13,6.6301]
[1718848315974,7.396,135.21,135.13,6.6301]
[1718848316167,255.9,135.24,135.13,6.6301]
[1718848316362,7.3963,135.21,135.13,6.6301]
[1718848316568,7.5667,135.2,135.09,22.3621]
[1718848316769,7.5667,135.2,135.1,65.0]
[1718848317511,0.17,135.18,135.1,65.0]
[1718848317692,0.34,135.18,135.1,45.0]
[1718848317991,0.17,135.16,135.09,22.3621]
[1718848318291,0.34,135.16,135.09,22.3621]
[1718848318596,0.17,135.15,135.09,22.3621]
[1718848318885,0.17,135.14,135.05,6.047]
[1718848319089,0.34,135.14,135.05,6.047]
[1718848319296,0.34,135.14,135.11,7.4013]
[1718848319469,0.17,135.13,135.05,6.047]
[1718848319786,0.34,135.13,135.1,7.4019]
[1718848319991,0.17,135.12,135.09,7.4022]
[1718848320489,0.17,135.12,135.05,6.047]
[1718848320674,0.34,135.13,135.11,7.401]
[1718848321080,0.34,135.12,135.05,6.047]
[1718848321283,0.34,135.11,135.05,6.047]
[1718848321583,0.17,135.1,135.06,7.4041]
[1718848321784,0.17,135.1,135.09,7.4024]
[1718848321981,0.17,135.1,135.06,7.4035]
[1718848322179,0.34,135.1,135.06,7.4035]
[1718848322501,0.34,135.09,135.07,7.4035]
[1718848322670,0.34,135.09,135.08,7.403]
[1718848322993,122.5114,135.19,135.13,7.4002]
[1718848323170,15.1144,135.19,135.13,7.4002]
[1718848323375,33.6069,135.19,135.0,22.2565]
[1718848323676,7.3991,135.16,135.1,7.4018]
[1718848323889,15.1144,135.19,135.13,7.4002]
[1718848324071,6.4635,135.21,135.09,6.0568]
[1718848324271,6.4635,135.21,135.17,7.398]
[1718848324492,6.4635,135.21,135.16,7.3984]
[1718848324692,6.4635,135.21,135.15,7.3989]
[1718848324693,13.8594,135.21,135.15,7.3989]
[1718848325197,7.3954,135.22,135.1,45.0]
[1718848325381,271.5811,135.24,135.1,45.0]
[1718848325382,7.395,135.23,135.1,45.0]
[1718848325570,255.9,135.24,135.1,45.0]
[1718848325767,255.9,135.24,135.11,20.0]
[1718848325972,7.395,135.23,135.12,45.0]
[1718848326569,255.9,135.24,135.12,45.0]
[1718848326775,255.9,135.24,135.13,20.0]
[1718848327103,255.9,135.24,135.14,45.0]
[1718848327674,263.2943,135.24,135.14,45.0]
[1718848328091,255.9,135.24,135.14,45.0]
[1718848328270,7.3959,135.21,135.09,47.1959]
[1718848328476,100.0,135.23,135.09,21.7759]
[1718848328684,255.9,135.24,135.09,21.7759]
[1718848328685,0.17,135.2,135.09,21.7759]
[1718848328889,0.68,135.2,135.09,21.7759]
[1718848329077,0.17,135.19,135.09,21.7759]
[1718848329277,7.9075,135.19,135.09,21.7759]
[1718848329487,0.17,135.18,135.09,21.7759]
[1718848329688,0.17,135.17,135.09,21.7759]
[1718848329899,100.0,135.22,135.09,21.7759]
[1718848330098,7.3955,135.22,135.16,7.3981]
[1718848330480,122.52265379,135.28,135.09,21.7759]
[1718848330785,122.52265379,135.28,135.1,65.0]
[1718848330786,115.6038,135.28,135.1,65.0]
[1718848330987,115.6038,135.28,135.11,25.42]
[1718848331305,115.6038,135.28,135.12,65.0]
[1718848331306,7.3949,135.23,135.12,65.0]
[1718848331980,255.9,135.24,135.12,65.0]
[1718848332181,0.17,135.23,135.12,65.0]
[1718848332798,7.7348,135.23,135.12,65.0]
[1718848332995,0.34,135.23,135.12,65.0]
[1718848333384,0.34,135.22,135.12,65.0]
[1718848333584,0.34,135.21,135.12,65.0]
[1718848333804,0.17,135.19,135.12,45.0]
[1718848333980,7.3976,135.18,135.09,21.7759]
[1718848334187,0.68,135.17,135.09,21.7759]
[1718848334487,0.17,135.16,135.09,21.7759]
[1718848334690,0.34,135.16,135.09,21.7759]
[1718848334889,0.17,135.17,135.09,21.7759]
[1718848335192,0.17,135.18,135.09,21.7759]
[1718848335399,0.34,135.19,135.1,45.0]
[1718848335596,263.5841061,135.24,135.1,45.0]
[1718848335798,263.2943,135.24,135.11,20.0]
[1718848336014,263.2943,135.24,135.12,45.0]
[1718848336183,255.9,135.24,135.12,45.0]
[1718848336378,255.9,135.24,135.13,20.0]
[1718848336584,255.9,135.24,135.14,45.0]
[1718848337204,15.6038,135.28,135.14,45.0]
[1718848337506,15.6038,135.28,135.15,20.0]
[1718848337696,15.6038,135.28,135.16,45.0]
[1718848338309,22.9959,135.28,135.16,45.0]
[1718848338491,15.6038,135.28,135.16,45.0]
[1718848339410,6.0662,135.29,135.18,16.6307]
[1718848339634,6.0662,135.29,135.19,45.0]
[1718848340413,13.4578,135.29,135.19,45.0]
[1718848340720,255.9,135.31,135.19,45.0]
[1718848340888,255.9,135.31,135.2,20.0]
[1718848341090,255.9,135.31,135.21,45.0]
[1718848342086,0.68,135.3,135.21,45.0]
[1718848342282,0.17,135.26,135.17,6.3942]
[1718848342510,0.17,135.25,135.17,6.3942]
[1718848343198,0.17,135.25,135.13,16.0774]
[1718848343395,14.2261,135.25,135.13,22.6331]
[1718848343595,0.17,135.23,135.13,22.6331]
[1718848344332,7.3954,135.22,135.13,22.6331]
[1718848344503,0.17,135.2,135.13,22.6331]
[1718848345043,0.17,135.2,135.1,6.5557]
[1718848345201,7.3971,135.19,135.1,6.5557]
[1718848345395,0.68,135.18,135.1,6.5557]
[1718848345702,0.17,135.16,135.1,6.5557]
[1718848346009,0.17,135.16,135.09,15.0337]
[1718848346010,0.68,135.16,135.09,15.0337]
[1718848346325,0.68,135.16,135.12,7.4003]
[1718848347200,255.9,135.23,135.18,7.3974]
[1718848347402,7.3947,135.24,135.17,7.3979]
[1718848347599,7.3949,135.23,135.17,7.3979]
[1718848348122,141.3711,135.25,135.09,15.0337]
[1718848348417,100.0,135.21,135.09,15.0337]
[1718848348620,0.17,135.18,135.09,15.0337]
[1718848348824,0.17,135.17,135.09,15.0337]
[1718848349021,0.68,135.17,135.13,7.4]
[1718848349323,0.68,135.17,135.09,15.0337]
[1718848349498,0.68,135.17,135.15,7.3991]
[1718848349919,0.68,135.17,135.09,15.0337]
[1718848349920,0.34,135.17,135.09,15.0337]
[1718848350627,7.396,135.21,135.15,7.3987]
[1718848350818,7.3959,135.21,135.09,15.0337]
[1718848351023,20.0,135.24,135.09,15.0337]
[1718848351201,22.8866,135.25,135.1,20.0]
[1718848351409,7.3959,135.21,135.15,7.3989]
[1718848351739,7.3954,135.22,135.16,7.3986]
[1718848352512,0.68,135.21,135.16,7.3986]
[1718848353818,0.68,135.21,135.1,20.0]
[1718848354023,7.3965,135.2,135.11,45.0]
[1718848354217,0.68,135.19,135.11,45.0]
[1718848354622,0.17,135.15,135.06,6.5557]
[1718848356133,0.17,135.15,135.12,7.4006]
[1718848356315,6.489,135.2,135.06,6.5557]
[1718848356515,6.489,135.2,135.15,7.3988]
[1718848356716,7.3974,135.19,135.13,7.4001]
[1718848356928,6.489,135.2,135.06,6.5557]
[1718848357116,6.489,135.2,135.07,65.0]
[1718848357308,13.8855,135.2,135.07,65.0]
[1718848357523,0.17,135.19,135.07,65.0]
[1718848357721,0.68,135.19,135.07,65.0]
[1718848358631,6.489,135.2,135.17,7.3979]
[1718848358835,13.8014,135.24,135.18,7.3971]
[1718848359033,6.4069,135.24,135.07,65.0]
[1718848359228,6.4069,135.24,135.08,0.17]
[1718848359430,6.4069,135.24,135.11,21.4261]
[1718848359612,6.4069,135.24,135.12,65.0]
[1718848360536,6.1941,135.28,135.14,25.42]
[1718848360744,6.1941,135.28,135.15,65.0]
[1718848361127,13.5862,135.28,135.15,65.0]
[1718848361529,7.3926,135.27,135.15,65.0]
[1718848361831,13.5864,135.28,135.15,65.0]
[1718848362633,0.51,135.27,135.15,65.0]
[1718848362839,0.34,135.26,135.15,65.0]
[1718848363126,0.51,135.25,135.15,65.0]
[1718848363326,6.1941,135.28,135.15,65.0]
[1718848364038,255.9,135.32,135.17,16.1434]
[1718848364039,269.6885,135.32,135.17,16.1434]
[1718848364343,269.6885,135.32,135.18,65.0]
[1718848364536,362.2986,135.32,135.18,65.0]
[1718848364936,380.7745,135.32,135.18,45.0]
[1718848365127,0.51,135.31,135.18,45.0]
[1718848365328,0.17,135.27,135.18,45.0]
[1718848365719,0.17,135.25,135.18,45.0]
[1718848365925,0.34,135.25,135.18,45.0]
[1718848368240,0.34,135.24,135.18,45.0]
[1718848368446,0.34,135.25,135.18,45.0]
[1718848368848,0.34,135.24,135.18,45.0]
[1718848369029,0.34,135.23,135.17,16.1434]
[1718848369231,0.34,135.22,135.16,6.0529]
[1718848369425,0.34,135.21,135.13,15.5628]
[1718848369636,0.34,135.2,135.13,22.1091]
[1718848369844,0.34,135.21,135.13,22.1091]
[1718848369845,0.17,135.21,135.13,22.1091]
[1718848370079,0.17,135.23,135.13,22.1091]
[1718848370665,0.17,135.21,135.13,22.1091]
[1718848370827,0.51,135.22,135.13,22.1091]
[1718848371032,0.34,135.21,135.13,22.1091]
[1718848371239,0.17,135.2,135.13,22.1091]
[1718848371550,0.17,135.19,135.13,22.1091]
[1718848371746,0.51,135.19,135.13,22.1091]
[1718848372045,0.17,135.18,135.09,25.704112]
[1718848372247,0.51,135.18,135.1,20.0]
[1718848373151,0.51,135.18,135.11,45.0]
[1718848373848,0.17,135.18,135.11,45.0]
[1718848374033,0.17,135.24,135.12,20.0]
[1718848374228,0.68,135.24,135.13,45.0]
[1718848374428,0.34,135.24,135.13,45.0]
[1718848374640,0.34,135.23,135.13,45.0]
[1718848374842,7.7338,135.25,135.13,45.0]
[1718848375034,0.34,135.25,135.13,45.0]
[1718848375729,0.34,135.24,135.13,45.0]
[1718848375931,0.34,135.23,135.13,45.0]
[1718848376235,0.34,135.22,135.13,45.0]
[1718848376430,0.34,135.21,135.13,45.0]
[1718848376629,0.17,135.22,135.13,45.0]
[1718848376846,0.17,135.22,135.14,20.0]
[1718848377145,0.17,135.22,135.15,45.0]
[1718848378659,0.34,135.22,135.15,45.0]
[1718848378839,0.34,135.21,135.15,45.0]
[1718848379449,0.34,135.2,135.14,20.0]
[1718848379753,0.17,135.18,135.09,22.7397]
[1718848380059,0.34,135.18,135.1,20.0]
[1718848380350,0.17,135.17,135.1,20.0]
[1718848380550,0.17,135.16,135.04,21.6182]
[1718848380736,0.34,135.16,135.05,20.0]
[1718848380938,0.34,135.15,135.05,20.0]
[1718848381138,0.34,135.15,135.07,7.7373]
[1718848381346,0.34,135.15,135.08,20.0]
[1718848381852,0.34,135.15,135.05,20.0]
[1718848382149,0.34,135.15,135.14,7.3991]
[1718848382353,0.51,135.15,135.14,7.3991]
[1718848382850,0.17,135.18,135.06,0.17]
[1718848383042,0.68,135.18,135.07,25.42]
[1718848383246,0.68,135.18,135.08,65.0]
[1718848385154,0.68,135.18,135.08,20.0]
[1718848385542,0.68,135.18,135.05,20.0]
[1718848385735,7.3988,135.16,135.05,20.0]
[1718848385935,0.68,135.15,135.05,20.0]
[1718848386255,0.68,135.15,135.11,7.401]
[1718848386646,0.68,135.15,135.1,7.4017]
[1718848386833,0.17,135.13,135.09,7.4021]
[1718848387036,0.68,135.13,135.1,7.4017]
[1718848387758,0.17,135.11,135.08,7.4025]
[1718848387933,0.68,135.11,135.07,7.4034]
[1718848388134,0.68,135.11,135.08,7.4028]
[1718848389259,0.68,135.11,134.96,48.94687309]
[1718848389260,7.402,135.1,135.04,7.4047]
[1718848389483,0.17,135.06,134.96,6.2766]
[1718848389761,0.68,135.06,135.03,7.4053]
[1718848390171,0.68,135.06,135.01,7.4067]
[1718848390343,0.68,135.06,135.03,7.4056]
[1718848390540,0.68,135.06,135.02,7.4061]
[1718848391152,0.68,135.06,135.03,7.4057]
[1718848391658,0.68,135.06,134.96,6.2766]
[1718848392154,0.68,135.06,135.04,7.4051]
[1718848392739,0.68,135.06,134.96,6.2766]
[1718848392740,0.68,135.06,135.03,7.4055]
[1718848393264,0.17,135.04,134.99,7.4077]
[1718848393452,0.34,135.04,134.96,7.4091]
[1718848393656,0.17,135.01,134.9,15.1893]
[1718848393957,0.17,134.98,134.97,7.409]
[1718848395058,0.51,134.98,134.97,7.409]
[1718848395267,6.6269,134.99,134.98,7.4085]
[1718848395562,6.9669,134.99,134.98,7.4085]
[1718848395765,0.17,134.98,134.9,15.1893]
[1718848395943,0.68,134.98,134.95,7.4099]
[1718848396138,0.68,134.98,134.9,15.1893]
[1718848396639,0.68,134.98,134.95,7.4098]
[1718848396844,0.68,134.98,134.96,7.4095]
[1718848397268,0.68,134.98,134.89,6.4784]
[1718848397645,16.2692,134.97,134.86,16.1741]
[1718848397848,0.68,134.96,134.93,7.411]
[1718848398551,0.17,134.94,134.8,31.9611]
[1718848398874,0.17,134.94,134.81,16.1741]
[1718848399163,8.0907,134.94,134.81,16.1741]
[1718848399352,8.0907,134.94,134.8,31.9611]
[1718848400083,0.68,134.94,134.8,31.9611]
[1718848400845,0.68,134.94,134.81,20.0]
[1718848401050,6.6375,134.95,134.81,20.0]
[1718848401265,6.6375,134.95,134.84,25.42]
[1718848401557,6.6375,134.95,134.85,65.0]
[1718848402960,272.1692,134.97,134.86,15.873]
[1718848403155,6.3786,134.98,134.88,25.42]
[1718848403469,16.2648,135.01,134.89,65.0]
[1718848404567,6.3786,135.02,134.9,0.51]
[1718848404872,6.3786,135.02,134.92,25.42]
[1718848405051,6.3786,135.02,134.93,65.0]
[1718848405453,13.7849,135.02,134.93,65.0]
[1718848405675,6.3786,135.02,134.93,45.0]
[1718848406275,15.4775,135.05,134.94,20.0]
[1718848406447,15.4775,135.05,134.95,45.0]
[1718848407356,0.68,135.04,134.95,45.0]
[1718848409380,6.6369,135.06,134.96,20.0]
[1718848409675,6.6369,135.06,134.97,45.0]
[1718848411064,0.17,135.05,134.97,45.0]
[1718848411679,0.34,135.05,134.97,45.0]
[1718848412155,271.3967,135.09,134.98,20.0]
[1718848412156,262.3808,135.09,134.98,20.0]
[1718848412351,21.6073,135.13,134.99,45.0]
[1718848412664,21.6073,135.13,135.01,16.2887]
[1718848412857,21.6073,135.13,135.02,65.0]
[1718848413757,255.9,135.15,135.03,6.0389]
[1718848413963,29.0055,135.17,135.04,65.0]
[1718848414361,7.3986,135.16,135.04,65.0]
[1718848414675,29.0056,135.17,135.04,65.0]
[1718848415079,0.68,135.16,135.04,65.0]
[1718848415258,8.079,135.16,135.04,65.0]
[1718848415475,0.68,135.16,135.04,65.0]
[1718848415771,0.17,135.12,135.04,45.0]
[1718848415973,0.68,135.12,135.04,45.0]
[1718848423675,29.0056,135.17,135.04,45.0]
[1718848423676,21.6073,135.17,135.04,45.0]
[1718848423860,21.6073,135.17,135.05,20.0]
[1718848425086,0.68,135.16,135.05,20.0]
[1718848427483,0.68,135.16,135.06,6.2896]
[1718848428158,0.68,135.16,135.07,15.8275]
[1718848428357,0.34,135.16,135.07,15.8275]
[1718848429658,0.17,135.15,135.07,15.8275]
[1718848429862,0.34,135.15,135.07,15.8275]
[1718848430061,0.34,135.14,135.07,15.8275]
[1718848433381,0.17,135.15,135.07,15.8275]
[1718848433594,0.17,135.19,135.08,20.0]
[1718848433777,0.34,135.19,135.08,20.0]
[1718848434786,6.1748,135.25,135.09,6.1442]
[1718848434992,7.3955,135.22,135.1,36.6111]
[1718848435292,124.6591,135.25,135.1,36.6111]
[1718848435488,7.3956,135.22,135.1,36.6111]
[1718848436092,0.68,135.21,135.1,36.6111]
[1718848440867,0.17,135.17,135.1,16.6111]
[1718848441288,0.17,135.21,135.1,16.6111]
[1718848441488,0.51,135.2,135.1,16.6111]
[1718848441705,0.17,135.19,135.1,16.6111]
[1718848442212,31.55522184,135.26,135.11,6.5474]
[1718848442497,7.67592184,135.26,135.14,6.5474]
[1718848442701,7.67592184,135.26,135.15,20.0]
[1718848442881,255.9,135.27,135.15,20.0]
[1718848444505,263.2928,135.27,135.15,20.0]
[1718848444793,0.68,135.26,135.15,20.0]
[1718848445004,255.9,135.27,135.16,16.5612]
[1718848445289,255.9,135.27,135.17,20.0]
[1718848445497,7.3921,135.28,135.17,20.0]
[1718848445796,6.3034,135.31,135.18,6.1757]
[1718848445993,13.694,135.31,135.18,6.1757]
[1718848446196,255.9,135.33,135.19,15.7347]
[1718848446389,255.9,135.33,135.2,20.0]
[1718848446596,263.2895,135.33,135.2,20.0]
[1718848447106,255.9,135.33,135.2,20.0]
[1718848447702,263.2894,135.33,135.2,20.0]
[1718848448499,0.34,135.32,135.2,20.0]
[1718848448705,0.68,135.32,135.2,20.0]
[1718848449607,0.68,135.32,135.21,6.4233]
[1718848451699,5.76252024,135.36,135.22,15.9618]
[1718848451989,263.2874,135.37,135.23,20.0]
[1718848452192,7.3885,135.35,135.23,20.0]
[1718848452399,7.3891,135.34,135.23,20.0]
[1718848452575,255.9,135.37,135.23,20.0]
[1718848452977,7.3877,135.36,135.23,20.0]
[1718848453176,263.2871,135.37,135.23,20.0]
[1718848453371,255.9,135.37,135.23,20.0]
[1718848453585,255.9,135.37,135.24,6.4908]
[1718848453782,255.9,135.37,135.26,16.2063]
[1718848453978,6.2737,135.38,135.26,16.2063]